[Event "Romanian Rapid Open 2022"]
[Site "Sebes"]
[Date "2022.12.02"]
[Round "7.15"]
[White "Ciorgovean, Iustin"]
[Black "Ghita, Vlad-Bogdan"]
[Result "1-0"]
[ECO "A07"]
[WhiteElo "2319"]
[BlackElo "1938"]
[Annotator "TA"]
[PlyCount "115"]
[EventDate "2022.12.02"]
[EventType "rapid"]
[EventCountry "ROU"]
[SourceTitle "playchess.com"]
[Source "ChessBase"]
[SourceQuality "1"]
[TimeControl "600+5"]

{[%evp 16,115,18,21,14,10,5,-13,0,0,10,0,18,0,21,10,38,22,31,0,9,-15,-18,-26,-9,-17,-14,-10,-9,-12,11,-18,-9,-9,-9,-28,-14,-14,0,-172,-163,-152,-162,-136,-125,-136,-133,-216,-212,-263,-263,-238,-260,-251,-144,-244,-241,-235,-144,-175,-94,-235,-67,-209,-14,-570,-564,-783,-719,-925,-869,-1141,-1130,-1107,-953,-914,-836,-922,-918,-916,-912,-896,-865,-879,-564,-548,-559,-541,-489,-705,-613,-710,-704,-698,-585,-530,-565,-557,-557,-507,-10,-8]} 1. Nf3 {[%emt 0:00:01]} d5 {[%emt 0:00:01]} 2. g3 {[%emt 0:00:01]} g6 {[%emt 0:00:02]} 3. Bg2 {[%emt 0:00:02]} Bg7 {[%emt 0:00:02]} 4. O-O {[%emt 0:00:03]} c6 {[%emt 0:00:08]} 5. d3 {[%emt 0:00:05]} Nf6 {[%emt 0:00:05]} 6. Nbd2 {[%emt 0:00:13]} O-O {[%emt 0:00:10]} 7. e4 {[%emt 0:00:00]} Bg4 {[%emt 0:00:05]} 8. h3 {[%emt 0:00:06]} Bxf3 {[%emt 0:00:01]} 9. Qxf3 {[%emt 0:00:04]} e5 {[%emt 0:00:16] A07: Réti Opening: New York and Capablanca Systems.} 10. Qe2 {[%emt 0:00:09]} Re8 {[%emt 0:00:04] [#]} 11. Kh2 $146 {[%emt 0:00:43]} ({Predecessor:} 11. Nb3 Nbd7 12. Be3 Qc7 13. c4 d4 14. Bc1 c5 15. f4 a6 16. g4 exf4 17. Bxf4 {1-0 (37) Acor,C (2223)-Spitzl,V (2346) Chess.com INT 2020}) 11... Nbd7 {[%emt 0:00:14]} 12. a4 {[%emt 0:00:35]} Qc7 {[%emt 0:00:35]} 13. a5 {[%emt 0:00:35]} Rad8 {[%emt 0:00:12]} 14. Nb3 {[%emt 0:00:17]} Qd6 {[%emt 0:02:43]} 15. c3 {[%emt 0:00:58]} h6 {[%emt 0:00:26]} 16. Be3 {[%emt 0:00:24]} c5 {[%emt 0:00:07]} 17. Rfd1 {[%emt 0:01:58]} d4 {[%emt 0:00:06]} 18. cxd4 {[%emt 0:00:03]} cxd4 {[%emt 0:00:04]} 19. Bd2 {[%emt 0:00:02]} Rc8 {[%emt 0:00:44]} (19... Qe6 $5 {[%cal Re6b3]} 20. Nc1 Rc8 $15) 20. Rdc1 {[%emt 0:00:06]} Qa6 {[%emt 0:00:43]} 21. Bf1 {[%emt 0:01:30]} Qb5 {[%emt 0:00:07]} 22. Qd1 {[%emt 0:00:04]} Nh7 {[%emt 0:01:19][%cal Bf6h7,Bh7f8,Bf8e6,Be6c5,Bc5b3,Bb3d2][%mdl 32]} 23. Rc4 {[%emt 0:00:47]} Rxc4 {[%emt 0:00:02]} 24. dxc4 {[%emt 0:00:01]} Qc6 {[%emt 0:00:01]} 25. Bd3 {[%emt 0:00:05]} Nhf8 {[%emt 0:00:06]} (25... Ng5 {is interesting.} 26. f3 Qf6 27. Kg2 Qe6) 26. h4 {[%emt 0:02:19]} h5 {[%emt 0:00:04]} 27. g4 $2 {[%emt 0:00:04]} (27. f3 $11 {and White is okay.}) 27... hxg4 {[%emt 0:00:22]} 28. Qxg4 {[%emt 0:00:02]} Nf6 {[%emt 0:00:09]} 29. Qf3 {[%emt 0:00:03]} Nh5 {[%emt 0:00:08]} 30. Nc1 {[%emt 0:00:08]} Ne6 {[%emt 0:00:17]} 31. Ne2 {[%emt 0:00:31]} (31. Kg1 $17 {was called for.}) 31... Nc5 $1 $19 {[%emt 0:00:10][%cal Of7f5]} 32. b4 {[%emt 0:00:12] Prevents f5.} Nb3 {[%emt 0:00:10][%csl LRa1,LRd2] Pair of Knights!} 33. Ra2 {[%emt 0:00:07]} Nxd2 {[%emt 0:00:03]} 34. Rxd2 {[%emt 0:00:01]} Bh6 {[%emt 0:00:01]} (34... Qa4 $19 35. Rb2 Qa3) 35. Rd1 {[%emt 0:00:05]} (35. Ra2 $17 {is a better defense.}) 35... Re6 {[%emt 0:00:01] White must now prevent ...Rf6.} 36. Rg1 {[%emt 0:00:04]} Bf4+ {[%emt 0:00:27]} 37. Kh1 {[%emt 0:00:05]} Kh7 {[%emt 0:00:05]} (37... Kf8 $19 {aiming for ...Rf6.} 38. Ng3 Bxg3 39. fxg3 Qa4) 38. c5 {[%emt 0:00:12] [#]} (38. Ng3 $17 {might work better.} Ng7 39. h5) 38... Qa4 $2 {[%emt 0:00:42]} (38... Rf6 $1 $19 39. Qg2 Bd2) 39. Rb1 {[%emt 0:00:13]} (39. Ng3 $1 $15 Ng7 40. Rb1) 39... Qa3 $2 {[%emt 0:00:35]} ({Better is} 39... Kg7 $19 {And now ...Rf6 would win.} 40. Qh3 Rf6) 40. Kg2 $2 {[%emt 0:00:05][%mdl 8192] [#]} (40. Ng3 $1 $11 {and White has nothing to worry.}) 40... Rf6 $1 {[%emt 0:00:06]} 41. Bc4 {[%emt 0:00:06] [#]} Be3 $1 {[%emt 0:00:12][%mdl 512]} 42. Qxf6 {[%emt 0:00:19]} (42. Qh3 Rxf2+) 42... Nxf6 {[%emt 0:00:02]} 43. fxe3 {[%emt 0:00:02]} Qxe3 {[%emt 0:00:05]} 44. Rf1 {[%emt 0:00:01]} d3 {[%emt 0:00:17]} 45. Ng3 {[%emt 0:00:05]} Kg7 {[%emt 0:00:10]} 46. Rf3 {[%emt 0:00:06]} Qd2+ {[%emt 0:00:13]} 47. Kh3 {[%emt 0:00:03]} Qxb4 {[%emt 0:00:06]} 48. Bxd3 {[%emt 0:00:05]} Qxc5 {[%emt 0:00:01]} 49. h5 {[%emt 0:00:02]} Qxa5 {[%emt 0:00:17]} 50. h6+ {[%emt 0:00:02]} Kxh6 {[%emt 0:00:14]} 51. Rxf6 {[%emt 0:00:01]} Kg7 {[%emt 0:00:12]} 52. Rd6 {[%emt 0:00:09]} (52. Rf3 $142 Qc5 53. Bb1) 52... Qd2 {[%emt 0:00:06]} 53. Rd5 {[%emt 0:00:04]} a5 {[%emt 0:00:20]} 54. Bb5 {[%emt 0:00:01]} Qh6+ {[%emt 0:00:08]} 55. Kg2 {[%emt 0:00:01]} Qf4 {[%emt 0:00:03]} 56. Bd7 {[%emt 0:00:14]} b6 {[%emt 0:00:08]} 57. Bb5 {[%emt 0:00:08]} f5 $2 {[%emt 0:00:05]} (57... Qe3 $19 58. Rxe5 Qb3) 58. exf5 $1 {[%emt 0:00:01][%mdl 32768] Weighted Error Value: White=0.64/Black=0.50. Loss on time!?} 1-0

[Event "Romanian Rapid Open 2022"]
[Site "Sebes"]
[Date "2022.12.02"]
[Round "7.16"]
[White "Cnejev, Vladimir-Alexandru"]
[Black "Balaban-Voia, Alexandru"]
[Result "1/2-1/2"]
[ECO "B07"]
[WhiteElo "2293"]
[BlackElo "1994"]
[Annotator "TA"]
[PlyCount "118"]
[EventDate "2022.12.02"]
[EventType "rapid"]
[EventCountry "ROU"]
[SourceTitle "playchess.com"]
[Source "ChessBase"]
[SourceQuality "1"]
[TimeControl "600+5"]

{[%evp 16,118,33,41,43,21,24,25,29,29,50,41,53,45,41,38,54,22,36,36,39,43,39,39,42,40,50,50,50,50,49,52,57,52,52,35,51,27,27,36,37,27,27,26,40,27,33,13,27,0,0,0,21,21,20,0,45,45,45,45,40,45,45,0,0,-119,0,0,0,0,0,0,0,0,0,0,0,0,0,0,0,0,0,0,0,0,0,0,0,0,0,0,0,0,0,0,0,0,0,0,0,0,0,0,0]} 1. e4 {[%emt 0:00:02]} g6 {[%emt 0:00:01]} 2. d4 {[%emt 0:00:01]} Bg7 {[%emt 0:00:01]} 3. c3 {[%emt 0:00:09]} d6 {[%emt 0:00:06]} 4. Bd3 {[%emt 0:00:03]} e5 {[%emt 0:01:31]} 5. Nf3 {[%emt 0:00:09]} Nd7 {[%emt 0:00:20]} 6. O-O {[%emt 0:00:07]} Ngf6 {[%emt 0:00:13]} 7. Nbd2 {[%emt 0:00:01]} O-O {[%emt 0:00:07]} 8. Re1 {[%emt 0:00:01]} b6 {[%emt 0:01:39]} 9. a4 {[%emt 0:00:07]} a6 {[%emt 0:00:20] B07: Pirc Defence: Miscellaneous Systems.} 10. dxe5 {[%emt 0:00:45] [#]} Nxe5 $146 {[%emt 0:01:49]} ({Predecessor:} 10... dxe5 11. Nc4 Bb7 12. b4 Nh5 13. Bg5 Qe8 14. Qc2 h6 15. Be3 Qe7 16. Rad1 Kh8 {0-1 (48) Antonova,N (1877)-McCoy,O (2075) Chess.com INT 2021}) 11. Nxe5 {[%emt 0:00:02]} dxe5 {[%emt 0:00:02] White has an edge.} 12. Nc4 {[%emt 0:00:01]} Re8 {[%emt 0:00:24]} 13. Qc2 {[%emt 0:00:01]} Bb7 {[%emt 0:00:14]} 14. b4 {[%emt 0:00:47]} Nd7 {[%emt 0:01:07]} 15. Be3 {[%emt 0:01:18]} Qe7 {[%emt 0:00:35]} 16. Rad1 {[%emt 0:00:06]} Nf8 {[%emt 0:00:25]} 17. a5 {[%emt 0:01:16]} b5 {[%emt 0:00:08]} 18. Nd2 {[%emt 0:00:02]} Ne6 {[%emt 0:00:12]} 19. Nb3 {[%emt 0:00:02] Prevents c5.} Rad8 {[%emt 0:00:37]} 20. Nc5 {[%emt 0:00:27]} Nxc5 {[%emt 0:00:07]} 21. Bxc5 {[%emt 0:00:01]} Qe6 {[%emt 0:01:05]} 22. c4 {[%emt 0:00:23]} c6 {[%emt 0:00:02]} 23. Bb6 {[%emt 0:02:53]} Rd7 {[%emt 0:00:01]} 24. Be2 {[%emt 0:00:08]} Ree7 {[%emt 0:00:42]} 25. h3 {[%emt 0:01:07]} h5 {[%emt 0:00:01]} 26. Bc5 {[%emt 0:01:05]} Rxd1 $1 {[%emt 0:00:02]} 27. Rxd1 {[%emt 0:00:01]} Rd7 {[%emt 0:00:01]} 28. Rxd7 {[%emt 0:00:05]} Qxd7 {[%emt 0:00:01]} 29. Qc3 {[%emt 0:00:06]} f6 {[%emt 0:00:19]} 30. Qe3 {[%emt 0:00:25]} Kh7 {[%emt 0:00:15][%cal Bg8h7,Bh7g7,Bg7f7,Bf7e6,Be6d7,Bd7e7][%mdl 32]} 31. Kf1 {[%emt 0:00:10][%cal Bg1f1,Bf1e2,Be2d3][%mdl 32]} Bh6 {[%emt 0:00:01]} 32. Qd3 {[%emt 0:00:16]} (32. Qb3 {with more complications.} Qd2 33. cxb5 Qc1+ 34. Bd1) 32... Qxd3 33. Bxd3 $11 {[%emt 0:00:00][%mdl 4096] Endgame KBB-KBB} Kg7 {[%emt 0:00:13]} 34. Ke2 {[%emt 0:00:07]} Kf7 {[%emt 0:00:01]} 35. Bb1 {[%emt 0:00:23]} Ke6 {[%emt 0:00:01]} ({Don't play} 35... bxc4 36. Ba2 $16) (35... Bc8 $5) 36. Ba2 {[%emt 0:00:01]} Kd7 {[%emt 0:00:11]} 37. Kd3 {[%emt 0:00:32]} h4 {[%emt 0:00:05]} 38. g3 {[%emt 0:00:00]} g5 {[%emt 0:00:07][%cal Og5g4,Bg6g5,Bg5h4][%mdl 32]} 39. gxh4 {[%emt 0:00:00]} gxh4 {[%emt 0:00:01]} 40. Be3 {[%emt 0:00:00]} (40. cxb5 $11 cxb5 41. Bf7) 40... Bf8 {[%emt 0:00:08]} ({Black should play} 40... Bxe3 $17 41. Kxe3 Bc8) 41. c5 {[%emt 0:00:00] The position is equal.} Ke7 {[%emt 0:00:06]} 42. f3 {[%emt 0:00:00]} Bc8 {[%emt 0:00:00]} 43. Bf2 {[%emt 0:00:06]} Bxh3 {[%emt 0:00:02] [#] ...Bf1+ is the strong threat.} 44. Bxh4 {[%emt 0:00:01]} Be6 {[%emt 0:00:11]} 45. Bb1 {[%emt 0:00:15]} Bh6 {[%emt 0:00:07]} 46. Ke2 {[%emt 0:00:14]} Bc4+ {[%emt 0:00:02]} 47. Ke1 {[%emt 0:00:01]} Ke6 {[%emt 0:00:02]} 48. Bf2 {[%emt 0:00:04]} Bc1 {[%emt 0:00:03] [#] Hoping for ...Ba3.} 49. Kd1 $1 {[%emt 0:00:08]} Bf4 {[%emt 0:00:09]} (49... Ba3 $5 50. Be1 $8 Bb2 $11) 50. Bc2 {[%emt 0:00:05]} Bh6 {[%emt 0:00:02]} 51. Be1 {[%emt 0:00:02]} Bf4 {[%emt 0:00:03]} 52. Bd2 {[%emt 0:00:01]} Bg3 {[%emt 0:00:10]} 53. Be3 {[%emt 0:00:01]} Ke7 {[%emt 0:00:06]} 54. Kd2 {[%emt 0:00:02]} Ke6 {[%emt 0:00:05]} 55. Bd1 {[%emt 0:00:06]} Kf7 {[%emt 0:00:07]} 56. Bg1 {[%emt 0:00:18]} Bf4+ {[%emt 0:00:06]} 57. Be3 {[%emt 0:00:01]} Bg3 {[%emt 0:00:01]} 58. Bg1 {[%emt 0:00:02]} Bf4+ {[%emt 0:00:00]} 59. Be3 {[%emt 0:00:00]} Bg3 {[%emt 0:00:01] Weighted Error Value: White=0.11 (very precise) /Black=0.07 (flawless)} 1/2-1/2

[Event "Romanian Rapid Open 2022"]
[Site "Sebes"]
[Date "2022.12.02"]
[Round "7.17"]
[White "Tudor, Henry Edward"]
[Black "Nastore, Pavel-Alexandru"]
[Result "0-1"]
[ECO "A67"]
[WhiteElo "1943"]
[BlackElo "2218"]
[Annotator "TA"]
[PlyCount "112"]
[EventDate "2022.12.02"]
[EventType "rapid"]
[EventCountry "ROU"]
[SourceTitle "playchess.com"]
[Source "ChessBase"]
[SourceQuality "1"]
[TimeControl "600+5"]

{[%evp 22,112,33,38,37,30,30,-131,34,28,71,0,22,-9,36,0,56,55,72,-34,0,-16,0,0,34,-103,-107,-118,-114,-196,-215,-210,-179,-206,-190,-247,-250,-244,-190,-182,-188,-299,-276,-358,-286,-271,-278,-364,-375,-726,-295,-942,-593,-593,-593,-593,-510,-1216,-1172,-29979,-29980,-29980,-29981,-29980,-29974,-29959,-29965,-29978,-29979,-29982,-29980,-29980,-29980,-29984,-29985,-29986,-29986,-29986,-29982,-29988,-29985,-29989,-29983,-29986,-29987,-29987,-29988,-29989,-29990,-29992,-29993,-29993,-29994]} 1. d4 {[%emt 0:00:01]} Nf6 {[%emt 0:00:01]} 2. c4 {[%emt 0:00:04]} e6 {[%emt 0:00:03]} 3. Nc3 {[%emt 0:00:06]} c5 {[%emt 0:00:01]} 4. d5 {[%emt 0:00:04]} exd5 {[%emt 0:00:01]} 5. cxd5 {[%emt 0:00:01]} d6 {[%emt 0:00:00]} 6. e4 {[%emt 0:00:04]} g6 {[%emt 0:00:01]} 7. f4 {[%emt 0:00:06]} Bg7 {[%emt 0:00:01]} 8. Bb5+ {[%emt 0:00:11]} Nfd7 {[%emt 0:00:02]} 9. a4 {[%emt 0:00:03]} O-O {[%emt 0:00:03]} 10. Nf3 {[%emt 0:00:09]} Na6 {[%emt 0:00:01][%cal Bb8a6,Ba6b4,Bb4d3][%mdl 32]} 11. O-O {[%emt 0:01:18]} Nb4 $1 {[%emt 0:00:01] 11...Nb4 scores better than 11...Nc7.} 12. Be3 {[%emt 0:00:18]} a6 {[%emt 0:00:05] A67: Modern Benoni: Taimanov Variation.} 13. Be2 {[%emt 0:00:03]} Re8 {[%emt 0:00:03]} 14. Nd2 $2 {[%emt 0:00:32] [#]} (14. Bf2 $11) 14... Nf6 $2 {[%emt 0:00:21]} (14... Bxc3 $1 $17 15. bxc3 Nxd5 16. exd5 Rxe3) 15. Bf2 $14 {[%emt 0:00:24]} Qc7 {[%emt 0:01:13] [#]} 16. Bf3 $146 {[%emt 0:01:10]} (16. Bg3 $16) ({Predecessor:} 16. Bg3 Rb8 17. f5 Nd7 18. Nc4 Ne5 19. Bxe5 Bxe5 20. Nxe5 Rxe5 21. Qd2 Qe7 22. Rf3 gxf5 {0-1 (44) Van Zyl Rudd,J (2277)-Fernandes,A (2353) Port Elizabeth 2020}) 16... Nd3 $11 {[%emt 0:00:03][%csl LRb2,LRf4]} 17. Be3 {[%emt 0:00:02]} (17. Nc4 $5 {[%cal Rd1d3]} Nxf2 18. Rxf2 $11 (18. Kxf2 Rb8 $11)) 17... c4 {[%emt 0:02:24]} (17... Bg4 $5) 18. Rb1 {[%emt 0:03:01][%cal Oa4a5]} Rb8 {[%emt 0:00:19]} (18... Nd7 $11) 19. a5 $1 $14 {[%emt 0:01:03]} Nd7 {[%emt 0:00:17][%cal Bf6d7,Bd7c5,Bc5a4][%mdl 32]} 20. Be2 {[%emt 0:01:29] [#]} (20. Qa4 $16 {Strongly threatening Bb6.} Nxb2 21. Rxb2 Bxc3 22. Ra2 (22. Qxc4 Qxc4 23. Nxc4 Bxb2 $17) (22. Bb6 Nxb6 23. Qxe8+ Kg7 $16)) 20... Nxb2 $1 {[%emt 0:00:28]} 21. Qc2 {[%emt 0:00:24]} (21. Rxb2 Bxc3) 21... Nd3 {[%emt 0:00:03]} 22. Na4 {[%emt 0:00:01]} N3c5 {[%emt 0:00:28]} 23. Nxc5 {[%emt 0:00:48]} (23. e5 $14) 23... Nxc5 $17 {[%emt 0:00:03] Black converts the advantage convincingly.} 24. Qxc4 {[%emt 0:00:06]} Qxa5 {[%emt 0:00:10]} 25. e5 {[%emt 0:00:36]} (25. Bxc5 $17 dxc5 26. Nb3) 25... b5 $19 {[%emt 0:01:23]} 26. Qc1 {[%emt 0:00:05]} Bf5 {[%emt 0:04:40]} 27. Ra1 Na4 {[%emt 0:00:00]} 28. Nb3 {[%emt 0:00:06]} (28. Nf3 $142) 28... Qd8 {[%emt 0:00:00]} 29. Nd4 {[%emt 0:00:09]} Rc8 {[%emt 0:00:00]} 30. Nc6 {[%emt 0:00:03]} Qd7 {[%emt 0:00:00][%cal Rd6e5] Prevents g4.} ({Weaker is} 30... dxe5 31. Nxd8 Rxc1 32. Raxc1 $17 (32. Rfxc1 $2 {too greedy.} exf4 33. Bxf4 Bxa1 $19)) 31. Rxa4 {[%emt 0:00:03]} (31. Qd2 {might work better.}) 31... bxa4 {[%emt 0:00:00]} 32. Bxa6 {[%emt 0:00:00]} Rc7 {[%emt 0:00:00][%cal Rd6e5]} 33. Bb6 {[%emt 0:00:11]} dxe5 {[%emt 0:00:00]} 34. Bxc7 {[%emt 0:00:04]} Qxc7 {[%emt 0:00:00]} 35. fxe5 $2 {[%emt 0:00:15]} (35. Qe3 Ra8 36. Bc4 exf4 37. Qxf4 Qxf4 38. Rxf4) 35... Bxe5 {[%emt 0:00:00]} (35... Qb6+ $142 36. Kh1 Qxa6) 36. Re1 $2 {[%emt 0:00:00]} (36. Nxe5 Qb6+ 37. Kh1 Qxa6 38. Nxf7 Kxf7 39. g4) 36... Qb6+ {[%emt 0:00:00]} 37. Kh1 {[%emt 0:00:00]} Qxa6 38. Nxe5 {[%emt 0:00:09]} Qa5 {[%emt 0:00:06]} 39. Qd1 {[%emt 0:00:05]} (39. Re3 $142 Qb5 40. Kg1) 39... a3 {[%emt 0:00:07][%cal Ba4a3,Ba3a2][%mdl 32]} 40. Nf3 {[%emt 0:00:05]} Rxe1+ {[%emt 0:00:04] Black mates.} 41. Nxe1 {[%emt 0:00:01] KQB-KQN} a2 {[%emt 0:00:02]} 42. Qa1 {[%emt 0:00:00]} Bb1 {[%emt 0:00:08][%cal Ra5e1]} 43. Nf3 {[%emt 0:00:03]} Qxd5 {[%emt 0:00:04]} 44. h3 {[%emt 0:00:03]} Be4 {[%emt 0:00:06]} 45. Ne1 {[%emt 0:00:10]} Qd2 {[%emt 0:00:09]} 46. Kh2 {[%emt 0:00:09]} h5 {[%emt 0:00:04][%cal Bh7h5,Bh5h4][%mdl 32]} 47. Kh1 {[%emt 0:00:07]} h4 {[%emt 0:00:08]} 48. Kh2 {[%emt 0:00:01]} Bd5 {[%emt 0:00:22]} 49. Qe5 {[%emt 0:00:10]} Be6 {[%emt 0:00:16]} 50. Qa1 {[%emt 0:00:06]} Qf4+ {[%emt 0:00:07]} 51. Kh1 {[%emt 0:00:02]} Qf1+ {[%emt 0:00:03]} 52. Kh2 {[%emt 0:00:01]} Qb5 {[%emt 0:00:02]} 53. Nc2 {[%emt 0:00:07]} Qb3 {[%emt 0:00:08]} 54. Qd1 {[%emt 0:00:07]} Qb8+ {[%emt 0:00:10]} 55. Kh1 {[%emt 0:00:05]} Qb1 {[%emt 0:00:01]} 56. Qg1 {[%emt 0:00:06]} Qxc2 {[%emt 0:00:03] Weighted Error Value: White=0.76/Black=0.39} 0-1

[Event "Romanian Rapid Open 2022"]
[Site "Sebes"]
[Date "2022.12.02"]
[Round "7.18"]
[White "Teodorescu, Razvan"]
[Black "Coicev, Matei-Andrei"]
[Result "0-1"]
[ECO "E16"]
[WhiteElo "2118"]
[BlackElo "2009"]
[Annotator "TA"]
[PlyCount "71"]
[EventDate "2022.12.02"]
[EventType "rapid"]
[EventCountry "ROU"]
[SourceTitle "playchess.com"]
[Source "ChessBase"]
[SourceQuality "1"]
[TimeControl "600+5"]

{[%evp 23,71,5,17,0,3,10,16,0,8,0,16,-40,-31,-32,-33,-30,-32,-42,-37,-43,-39,-55,-30,-32,-21,-32,-55,-150,-161,-1856,-1803,-29985,-29986,-29985,-29986,-29996,-29992,-29992,-29993,-29993,-29994,-29994,-29994,-29995,0,0,0,-29997,-29995,-29998]} 1. d4 {[%emt 0:00:01]} Nf6 {[%emt 0:00:01]} 2. c4 {[%emt 0:00:01]} e6 {[%emt 0:00:01]} 3. Nf3 {[%emt 0:00:03]} Bb4+ {[%emt 0:00:01]} 4. Bd2 {[%emt 0:00:02]} a5 {[%emt 0:00:01]} 5. g3 {[%emt 0:00:05]} b6 {[%emt 0:00:01]} 6. Bg2 {[%emt 0:00:04]} Bb7 {[%emt 0:00:01]} 7. O-O {[%emt 0:00:05]} O-O {[%emt 0:00:02]} 8. Bf4 {[%emt 0:00:09]} Be7 {[%emt 0:00:01]} 9. Nc3 {[%emt 0:00:11]} Ne4 {[%emt 0:00:02]} 10. Qc2 {[%emt 0:00:29]} Nxc3 {[%emt 0:00:01]} 11. Qxc3 {[%emt 0:00:06]} d6 {[%emt 0:00:29]} 12. Rad1 {[%emt 0:00:58]} Nd7 {[%emt 0:00:06]} 13. Ne1 {[%emt 0:00:29] E16: Queen's Indian: 4 g3 Bb7 5 Bg2 Bb4+.} Bxg2 {[%emt 0:00:04]} 14. Kxg2 {[%emt 0:00:01] [#]} Bf6 $146 {[%emt 0:00:53]} ({Predecessor:} 14... c6 15. Nd3 Qc8 16. Qb3 Qb7 17. f3 a4 18. Qb4 c5 19. dxc5 dxc5 20. Qc3 Rfd8 {1-0 (51) Akdag,D (2251)-Sloth,J (2340) Denmark 2013}) 15. Qc2 {[%emt 0:00:21] The position is equal.} Qe7 {[%emt 0:01:02][%cal Of6d4]} 16. b3 {[%emt 0:00:43]} Rad8 {[%emt 0:01:39][%cal Of6d4]} 17. e4 {[%emt 0:00:27] [#]} (17. Nf3 $11) 17... Bxd4 $1 $15 {[%emt 0:00:47]} 18. Rxd4 {[%emt 0:00:28] Hoping for Be3.} e5 {[%emt 0:00:01]} 19. Bxe5 {[%emt 0:00:31]} dxe5 {[%emt 0:00:06]} 20. Rd1 {[%emt 0:00:14]} Nc5 {[%emt 0:00:06]} 21. Nf3 {[%emt 0:00:29]} f6 {[%emt 0:00:26]} 22. Rfe1 {[%emt 0:00:37]} Rxd1 {[%emt 0:00:20]} 23. Rxd1 {[%emt 0:00:02]} Rd8 {[%emt 0:00:03]} 24. Rxd8+ {[%emt 0:00:32]} Qxd8 $11 {[%emt 0:00:01][%mdl 4096] Endgame KQN-KQN} 25. Nd2 {[%emt 0:00:45]} (25. Qd2 $15 Qd3 26. a3) 25... Qd4 $17 {[%emt 0:00:26] Black is more active.} 26. f3 $2 {[%emt 0:01:08]} (26. Nf1) 26... Nd3 $19 {[%emt 0:00:23]} 27. Qd1 {[%emt 0:00:47] [#]} Qf2+ $1 {[%emt 0:01:07]} 28. Kh3 {[%emt 0:00:05]} Ne1 {[%emt 0:01:40]} 29. Kg4 {[%emt 0:00:57]} g6 {[%emt 0:00:54]} 30. Nf1 {[%emt 0:01:03]} h5+ {[%emt 0:00:35]} (30... Qxf1 31. Qd8+ Kg7 32. Qe7+ Kg8 33. Qd8+ Kg7 34. Qe7+ Kg8 35. Qd8+ $11) 31. Kh4 {[%emt 0:00:07]} Nxf3+ {[%emt 0:00:09]} ({And not} 31... Qxf1 32. Qd8+ Kh7 33. Qe7+ Kh8 34. Qf8+ Kh7 35. Qe7+ (35. Qf7+ Kh8 $11) 35... Kh8 36. Qf8+ Kh7 37. Qe7+ $11 (37. Qf7+ Kh8 $11)) 32. Kh3 {[%emt 0:00:01]} Ng5+ {[%emt 0:00:36]} 33. Kh4 {[%emt 0:00:02]} Qg2 $2 {[%emt 0:00:30]} ({Not} 33... Nxe4 34. Qd8+ Kh7 35. Qe7+ Kg8 36. Qe8+ Kh7 37. Qe7+ Kg8 38. Qe8+ Kh7 39. Qe7+ $11) (33... Kg7 {mates} 34. c5 Qg2 35. Qd7+ Kh6 36. Qh7+ Kxh7 37. cxb6 Qh3#) 34. Qd8+ $11 {[%emt 0:00:30]} Kg7 {[%emt 0:00:01][%cal Rg5f3]} 35. Qd7+ $2 {[%emt 0:00:18][%mdl 8192]} (35. Qe7+ $11 Nf7 36. Qe6 Qxf1 37. Qc8 Ng5 38. Qd7+ Kh6 39. Qg4 hxg4 40. Kxg4 Qh3#) 35... Nf7 {[%emt 0:00:02]} 36. Qh3 {[%emt 0:00:14] Weighted Error Value: White=0.86/Black=0.28 (precise)} 0-1